bitfinex/quotes_BTCUSD_20220204
["timestamp","ask_amount","ask_price","bid_price","bid_amount"]
[1644017549089,0.31538015,40769.0,40762.0,0.04972578]
[1644017549288,0.23633679,40769.0,40762.0,0.04972578]
[1644017550591,0.19687817,40765.0,40760.0,0.00081465]
[1644017551025,0.19723319,40765.0,40760.0,0.00081465]
[1644017551426,0.19723319,40765.0,40759.0,0.04972578]
[1644017551829,0.21098372,40762.0,40759.0,0.04972578]
[1644017553027,0.21098372,40762.0,40759.0,0.04934578]
[1644017554228,0.21098372,40762.0,40760.0,0.04934578]
[1644017554630,0.21098372,40762.0,40754.0,0.02135977]
[1644017554880,0.08719928,40758.0,40754.0,0.02135977]
[1644017555078,0.00035506,40761.0,40755.0,0.10483678]
[1644017555281,0.19098372,40762.0,40756.0,0.00081501]
[1644017555480,0.38292506,40761.0,40756.0,0.00081501]
[1644017555682,0.38257,40761.0,40756.0,0.00081501]
[1644017555878,0.33317,40757.0,40756.0,0.00081501]
[1644017556078,0.38257,40757.0,40756.0,0.00081501]
[1644017556280,0.38257,40757.0,40750.0,0.04934578]
[1644017556486,0.38292506,40757.0,40754.0,0.00081503]
[1644017556678,0.38257,40757.0,40754.0,0.00081503]
[1644017556879,0.24607424,40755.0,40754.0,0.00081503]
[1644017557078,0.57924424,40755.0,40754.0,0.00081503]
[1644017557277,0.24955239,40755.0,40754.0,0.05016081]
[1644017557479,0.04975506,40757.0,40754.0,0.04934578]
[1644017557781,0.333177,40756.0,40754.0,0.04934578]
[1644017558179,0.333177,40756.0,40752.0,0.00081505]
[1644017558379,0.5935148,40755.0,40754.0,0.04934578]
[1644017558629,0.5935148,40755.0,40749.0,0.01990977]
[1644017558829,0.5935148,40755.0,40752.0,0.00081505]
[1644017559032,0.395,40753.0,40749.0,0.01572482]
[1644017559229,0.432577,40752.0,40749.0,2.482e-05]
[1644017559430,0.0157,40750.0,40749.0,2.482e-05]
[1644017559629,0.348877,40750.0,40743.0,0.04934578]
[1644017559828,0.0494,40749.0,40743.0,0.04934578]
[1644017560028,0.0494,40749.0,40741.0,0.02]
[1644017560229,0.27087929,40745.0,40741.0,0.02]
[1644017560429,0.0494,40746.0,40741.0,0.02]
[1644017560829,0.04975506,40746.0,40741.0,0.02]
[1644017561129,0.04975506,40746.0,40743.0,0.04934578]
[1644017561329,0.0494,40746.0,40743.0,0.04934578]
[1644017561831,0.333177,40745.0,40741.0,0.02]
[1644017562031,0.04975506,40746.0,40741.0,0.02]
[1644017562286,0.00035506,40745.0,40741.0,0.02]
[1644017562481,0.04975506,40746.0,40741.0,0.02]
[1644017562681,0.00035506,40745.0,40741.0,0.02]
[1644017562882,0.04975506,40746.0,40741.0,0.02]
[1644017563082,0.00035506,40745.0,40741.0,0.02]
[1644017563383,0.0494,40746.0,40744.0,0.04934578]
[1644017563384,0.04975506,40746.0,40744.0,0.04934578]
[1644017563584,0.00035506,40745.0,40744.0,0.24478631]
[1644017563784,0.01942143,40758.0,40745.0,0.4]
[1644017564086,0.01942143,40758.0,40748.0,0.321472]
[1644017564087,0.00035519,40749.0,40748.0,0.321472]
[1644017564284,0.2046507,40754.0,40748.0,0.37081778]
[1644017564682,0.2046507,40754.0,40751.0,0.04934578]
[1644017567730,0.2046507,40754.0,40751.0,0.04914578]
[1644017568132,0.2046507,40754.0,40750.0,0.00081508]
[1644017568333,0.07108197,40750.0,40744.0,0.04914578]
[1644017568533,0.07108197,40750.0,40745.0,0.321491]
[1644017568834,0.07108197,40750.0,40745.0,0.421497]
[1644017569237,0.07108197,40750.0,40745.0,0.321497]
[1644017569434,0.07108197,40750.0,40746.0,0.321489]
[1644017569634,0.07108197,40750.0,40747.0,0.32148]
[1644017569878,0.07108197,40750.0,40748.0,0.321472]
[1644017570075,0.07108197,40750.0,40749.0,0.321463]
[1644017570277,0.07108197,40750.0,40745.0,0.00081513]
[1644017570674,0.00035519,40753.0,40744.0,0.4730825]
[1644017570877,0.2046507,40754.0,40746.0,0.09914578]
[1644017571076,0.00035519,40753.0,40750.0,0.04914578]
[1644017571377,0.2046507,40754.0,40750.0,0.04914578]
[1644017571378,0.20500589,40754.0,40750.0,0.04914578]
[1644017571576,0.20500589,40754.0,40746.0,0.09914578]
[1644017571780,0.0638406,40750.0,40746.0,0.09914578]
[1644017572076,0.0638406,40750.0,40741.0,0.37677406]
[1644017572077,0.0638406,40750.0,40748.0,0.0008151]
[1644017573176,0.30000149,40750.0,40744.0,0.04914578]
[1644017573380,0.30000149,40750.0,40747.0,0.00081511]
[1644017574224,0.30000149,40750.0,40744.0,0.04914578]
[1644017574429,0.30000149,40750.0,40746.0,0.00081512]
[1644017575525,0.29239755,40750.0,40744.0,0.09914578]
[1644017575725,0.29239755,40750.0,40747.0,0.04914578]
[1644017577374,0.29123479,40750.0,40747.0,0.04914578]
[1644017577776,0.00035519,40753.0,40747.0,0.14829156]
[1644017577975,0.2046507,40754.0,40751.0,0.04914578]
[1644017578174,0.00035519,40753.0,40751.0,0.04914578]
[1644017578374,0.2046507,40754.0,40751.0,0.04914578]
[1644017578774,0.2182955,40753.0,40751.0,0.04914578]
[1644017578975,0.28173603,40753.0,40751.0,0.04914578]
[1644017579678,0.2182955,40753.0,40751.0,0.04914578]
[1644017579876,0.00035519,40755.0,40752.0,0.321437]
[1644017580076,0.00035519,40758.0,40754.0,0.04914578]
[1644017580275,0.0006,40759.0,40757.0,0.04914578]
[1644017580476,0.00035519,40758.0,40757.0,0.37053478]
[1644017580675,0.0006,40759.0,40757.0,0.04914578]
[1644017580878,0.30845429,40758.0,40757.0,0.04914578]
[1644017581129,0.30845429,40758.0,40756.0,0.09914578]
[1644017581327,0.30845429,40758.0,40757.0,0.04914578]
[1644017581529,0.30845429,40758.0,40756.0,0.04914578]
[1644017581727,0.30845429,40758.0,40754.0,0.04914578]
[1644017581928,0.30880948,40758.0,40754.0,0.04914578]
[1644017582127,0.30880948,40758.0,40757.0,0.14829156]
[1644017582330,0.30880948,40758.0,40755.0,0.04914578]
[1644017582331,0.30845429,40758.0,40755.0,0.04914578]
[1644017582528,0.30845429,40758.0,40752.0,0.04914578]
[1644017582529,0.333177,40757.0,40752.0,0.04914578]
[1644017582728,0.333177,40757.0,40746.0,0.11914578]
[1644017582729,0.07421757,40747.0,40746.0,0.11914578]
[1644017582928,0.20816958,40748.0,40746.0,0.11914578]
[1644017583127,0.00035519,40756.0,40747.0,0.321482]
[1644017583327,0.25062785,40751.0,40746.0,0.07]
[1644017583531,0.00035519,40758.0,40749.0,0.04914578]
[1644017583730,0.00035519,40756.0,40746.0,0.07]
[1644017583930,0.07883972,40757.0,40753.0,0.04914578]
[1644017584131,0.26508389,40755.0,40753.0,0.04914578]
[1644017584330,0.333177,40754.0,40753.0,0.04914578]
[1644017584530,0.59048278,40754.0,40753.0,0.04914578]
[1644017584784,0.25730578,40754.0,40753.0,0.04914578]
[1644017585679,0.06858004,40756.0,40753.0,0.04914578]
[1644017586578,0.27332362,40756.0,40753.0,0.04914578]
[1644017587180,0.06858004,40756.0,40753.0,0.04914578]
[1644017587380,0.21242706,40759.0,40753.0,0.04914578]
[1644017588181,0.2816286,40756.0,40753.0,0.04914578]
[1644017588380,0.07654231,40756.0,40753.0,0.04914578]
[1644017591530,0.333177,40755.0,40753.0,0.04914578]
[1644017591730,0.07654231,40756.0,40753.0,0.04914578]
[1644017592130,0.07654231,40756.0,40752.0,0.04914578]
[1644017593275,0.07431116,40756.0,40750.0,0.00081463]
[1644017593577,0.07431116,40756.0,40751.0,0.04914578]
[1644017593979,0.07431116,40756.0,40750.0,0.0499604]
[1644017594178,0.07431116,40756.0,40753.0,0.04914578]
[1644017594777,0.07431116,40756.0,40751.0,0.04914578]
[1644017595278,0.07431116,40756.0,40750.0,0.00078713]
[1644017595279,0.07431116,40756.0,40755.0,0.14829156]
[1644017595678,0.07431116,40756.0,40755.0,0.46969956]
[1644017595878,0.07431116,40756.0,40755.0,0.37055378]
[1644017596139,0.07431116,40756.0,40755.0,0.46969956]
[1644017596737,0.07431116,40756.0,40755.0,0.321408]
[1644017596936,0.07431116,40756.0,40755.0,0.14829156]
[1644017597338,0.05431116,40756.0,40755.0,0.14829156]
[1644017597537,0.05431116,40756.0,40755.0,0.46969756]
[1644017597737,0.05431116,40756.0,40755.0,0.37055178]
[1644017597937,0.05431116,40756.0,40755.0,0.46969756]
[1644017599439,0.05431116,40756.0,40755.0,0.37055178]
[1644017602279,0.06460983,40764.0,40755.0,0.14829156]
[1644017602483,0.06460983,40764.0,40761.0,0.04914578]
[1644017602484,0.00325583,40764.0,40761.0,0.04914578]
[1644017602684,0.00325583,40764.0,40762.0,0.09914578]
[1644017602980,0.00325583,40764.0,40761.0,0.04914578]
[1644017603183,0.2509134,40769.0,40762.0,0.32134]
[1644017603380,0.08796269,40763.0,40762.0,0.09914578]
[1644017603827,0.08796269,40763.0,40762.0,0.14829156]
[1644017604027,0.08796269,40763.0,40762.0,0.04914578]
[1644017605735,0.08796269,40763.0,40759.0,0.321361]
[1644017606331,0.08796269,40763.0,40761.0,0.04914578]
[1644017607379,0.08796269,40763.0,40762.0,0.09914578]
[1644017608382,0.08796269,40763.0,40762.0,0.42048678]
[1644017608583,0.08796269,40763.0,40762.0,0.321341]
[1644017608779,0.08796269,40763.0,40762.0,0.09914578]
[1644017609180,0.08796269,40763.0,40761.0,0.04914578]
[1644017609383,0.08796269,40763.0,40762.0,0.09914578]
[1644017609581,0.08796269,40763.0,40761.0,0.04914578]
[1644017609782,0.08796269,40763.0,40762.0,0.09914578]
[1644017610583,0.08796269,40763.0,40761.0,0.04914578]
[1644017610785,0.08796269,40763.0,40762.0,0.09914578]
[1644017615076,0.08796269,40763.0,40761.0,0.04914578]
[1644017615674,0.08796269,40763.0,40762.0,0.09914578]
[1644017617477,0.2188689,40764.0,40762.0,0.09914578]
[1644017617777,0.2188689,40764.0,40763.0,0.09914578]
[1644017618178,0.2188689,40764.0,40761.0,0.14829156]
[1644017619030,0.22633747,40762.0,40761.0,0.14829156]
[1644017619932,0.2188689,40764.0,40761.0,0.14829156]
[1644017620933,0.22438546,40763.0,40761.0,0.14829156]
[1644017622480,0.22438546,40763.0,40761.0,0.04914578]
[1644017623279,0.22438546,40763.0,40761.0,0.14829156]
[1644017624580,0.22438546,40763.0,40761.0,0.04914578]
[1644017626836,0.21774325,40763.0,40761.0,0.04914578]
[1644017627039,0.0494,40762.0,40751.0,0.04914578]
[1644017627240,0.07809803,40752.0,40751.0,0.04914578]
[1644017627838,0.35175232,40752.0,40751.0,0.04914578]
[1644017629237,0.57107407,40752.0,40751.0,0.04914578]
[1644017629782,0.29741978,40752.0,40751.0,0.04914578]
[1644017630179,0.29241978,40752.0,40751.0,0.04914578]
[1644017630377,0.07309803,40752.0,40751.0,0.04914578]
[1644017630977,0.30699378,40752.0,40751.0,0.04914578]
[1644017631779,0.30699378,40752.0,40749.0,0.00081373]
[1644017631980,0.30699378,40752.0,40747.0,0.04914578]
[1644017632180,0.30699378,40752.0,40749.0,0.00081373]
[1644017633183,0.30699378,40752.0,40747.0,0.04914578]
[1644017633382,0.30699378,40752.0,40748.0,0.00081374]
[1644017633836,0.333177,40751.0,40748.0,0.00081374]
[1644017634436,0.333177,40751.0,40746.0,0.07]
[1644017634638,0.25241411,40747.0,40746.0,0.07]
[1644017635036,0.30181411,40747.0,40746.0,0.07]
[1644017635838,0.382577,40747.0,40746.0,0.07]
[1644017636143,0.35639378,40752.0,40746.0,0.16914578]
[1644017636338,0.35639378,40752.0,40746.0,0.07]
[1644017636941,0.25163368,40748.0,40747.0,0.00046836]
[1644017637681,0.58481068,40748.0,40747.0,0.00046836]
[1644017637981,0.333177,40747.0,40746.0,0.07]
[1644017638181,0.382577,40747.0,40746.0,0.07]
[1644017638681,0.482577,40747.0,40746.0,0.07]
[1644017639481,0.543958,40747.0,40746.0,0.07]
[1644017642233,0.443958,40747.0,40746.0,0.07]
[1644017644238,0.438958,40747.0,40746.0,0.07]
[1644017644436,0.377577,40747.0,40746.0,0.07]
[1644017645682,0.57695979,40747.0,40746.0,0.07]
[1644017645881,0.377577,40747.0,40746.0,0.07]
[1644017646483,0.19362106,40751.0,40746.0,0.07]
[1644017646682,0.333192,40750.0,40746.0,0.07]
[1644017646885,0.333192,40749.0,40746.0,0.07]
[1644017647085,0.394564,40749.0,40746.0,0.07]
[1644017647284,0.333192,40748.0,40746.0,0.07]
[1644017647483,0.333192,40750.0,40746.0,0.07]
[1644017648084,0.061372,40749.0,40746.0,0.07]
[1644017648284,0.333192,40748.0,40746.0,0.07]
[1644017648728,0.333192,40747.0,40746.0,0.07]
[1644017649028,0.06137,40751.0,40746.0,0.07]
[1644017649332,0.333192,40750.0,40746.0,0.07]
[1644017649532,0.06137,40751.0,40746.0,0.07]
[1644017649728,0.333192,40750.0,40746.0,0.07]
[1644017650131,0.333192,40750.0,40746.0,0.07081289]
[1644017651129,0.333192,40750.0,40746.0,0.07]
[1644017651331,0.333192,40750.0,40746.0,0.07081289]
[1644017652381,0.333192,40750.0,40746.0,0.07]
[1644017652582,0.06137,40751.0,40746.0,0.07081289]
[1644017652780,0.333192,40750.0,40746.0,0.07081289]
[1644017653080,0.333192,40750.0,40746.0,0.16995867]
[1644017653280,0.29306469,40752.0,40746.0,0.16995867]
[1644017653281,0.07309803,40752.0,40749.0,0.14829156]
[1644017653480,0.02143033,40759.0,40751.0,0.01753629]
[1644017653879,0.02143033,40759.0,40750.0,0.20816814]
[1644017653880,0.02143033,40759.0,40748.0,0.00081286]
[1644017654079,0.5929,40763.0,40755.0,0.04914578]
[1644017654381,0.00325018,40764.0,40752.0,0.01753629]
[1644017654382,0.08437119,40757.0,40752.0,0.01753629]
[1644017654784,0.08437119,40757.0,40756.0,0.04914578]
[1644017657233,0.30056384,40757.0,40756.0,0.04914578]
[1644017657439,0.41756319,40757.0,40756.0,0.04914578]
[1644017663083,0.41756319,40757.0,40750.0,0.00081239]
[1644017663285,0.23901411,40751.0,40749.0,0.04914578]
[1644017663530,0.23901411,40751.0,40750.0,0.00046783]
[1644017664131,0.23401411,40751.0,40750.0,0.00046783]
[1644017664336,0.4976954,40751.0,40749.0,0.04914578]
[1644017664832,0.07264501,40750.0,40749.0,0.04914578]
[1644017665432,0.07184501,40750.0,40749.0,0.04914578]
[1644017671734,0.07184501,40750.0,40749.0,0.48148356]
[1644017671934,0.1201,40760.0,40749.0,0.14829156]
[1644017672133,0.1201,40760.0,40753.0,0.09914578]
[1644017672134,0.453292,40760.0,40753.0,0.09914578]
[1644017672333,0.58474591,40762.0,40756.0,0.04914578]
[1644017672534,0.02044591,40762.0,40756.0,0.04914578]
[1644017672735,0.02044591,40762.0,40761.0,0.04914578]
[1644017673234,0.02044591,40762.0,40761.0,0.04414578]
[1644017674235,0.06737493,40766.0,40761.0,0.04414578]
[1644017674435,0.333192,40765.0,40761.0,0.04414578]
[1644017674633,0.333192,40765.0,40760.0,0.09414578]
[1644017674634,0.333192,40765.0,40764.0,0.04414578]
[1644017674882,0.54499644,40765.0,40764.0,0.04414578]
[1644017675081,0.54499644,40765.0,40764.0,0.13829156]
[1644017675487,0.333192,40765.0,40764.0,0.13829156]
[1644017675682,0.0006,40769.0,40764.0,0.13829156]
[1644017675883,0.0006,40769.0,40768.0,0.04414578]
[1644017677481,0.333192,40772.0,40768.0,0.04414578]
[1644017677681,0.333192,40772.0,40771.0,0.04414578]
[1644017677985,0.333192,40772.0,40770.0,0.04414578]
[1644017677986,0.5345368,40772.0,40770.0,0.04414578]
[1644017678382,0.5345368,40772.0,40765.0,0.04414578]
[1644017678639,0.5345368,40772.0,40761.0,0.04414578]
[1644017678640,0.07516728,40762.0,40761.0,0.04414578]
[1644017679237,0.06135,40765.0,40761.0,0.04414578]
[1644017679639,0.061351,40764.0,40761.0,0.04414578]
[1644017680440,0.25629492,40767.0,40762.0,0.09414578]
[1644017680646,0.31763692,40767.0,40766.0,0.04414578]
[1644017680940,0.58948692,40767.0,40766.0,0.04414578]
[1644017681343,0.58948692,40767.0,40764.0,0.09414578]
[1644017681540,0.333192,40766.0,40764.0,0.09414578]
[1644017681739,0.333192,40766.0,40765.0,0.04414578]
[1644017682142,0.246681,40774.0,40765.0,0.04414578]
[1644017682143,0.124,40774.0,40765.0,0.04414578]
[1644017682386,0.333192,40773.0,40772.0,0.04414578]
[1644017682586,0.33400313,40773.0,40772.0,0.04414578]
[1644017682986,0.79413734,40773.0,40772.0,0.04414578]
[1644017683191,0.88160997,40773.0,40768.0,0.04414578]
[1644017683688,0.88079884,40773.0,40772.0,0.04414578]
[1644017683890,0.88160998,40773.0,40769.0,0.04414578]
[1644017684088,0.68451066,40773.0,40763.0,0.26791618]
[1644017684288,0.333118,40772.0,40771.0,0.04414578]
[1644017684891,0.186004,40776.0,40771.0,0.13829156]
[1644017685189,0.186004,40776.0,40771.0,0.04414578]
[1644017685190,0.061338,40772.0,40771.0,0.04414578]
[1644017685588,0.002,40776.0,40771.0,0.04414578]
[1644017685793,0.08610771,40774.0,40772.0,0.09414578]
[1644017686033,0.08610771,40774.0,40773.0,0.04414578]
[1644017686233,0.35456571,40774.0,40773.0,0.04414578]
[1644017688233,0.35456571,40774.0,40773.0,0.13829156]
[1644017688635,0.268458,40774.0,40773.0,0.13829156]
[1644017689887,0.268458,40774.0,40773.0,0.04414578]
[1644017689888,0.3562222,40774.0,40773.0,0.04414578]
[1644017690089,0.0877642,40774.0,40770.0,0.044957]
[1644017690285,0.333118,40773.0,40770.0,0.044957]
[1644017690487,0.061338,40772.0,40770.0,0.044957]
[1644017690686,0.333118,40775.0,40770.0,0.044957]
[1644017690991,0.3952641,40775.0,40770.0,0.04414578]
[1644017691186,0.061339,40774.0,40769.0,0.00081122]
[1644017691387,0.268458,40773.0,40769.0,0.00081122]
[1644017691587,0.268458,40773.0,40772.0,0.04414578]
[1644017691786,0.07705151,40772.0,40769.0,0.00081122]
[1644017691987,0.07705151,40772.0,40771.0,0.04414578]
[1644017692787,0.07705151,40772.0,40768.0,0.04495701]
[1644017693187,0.13838951,40772.0,40768.0,0.04414578]
[1644017693385,0.13838951,40772.0,40768.0,0.04461463]
[1644017694052,0.19917924,40769.0,40768.0,0.04461463]
[1644017694452,0.19917924,40769.0,40768.0,0.04414578]
[1644017694852,0.53229724,40769.0,40768.0,0.04414578]
[1644017696954,0.53229724,40769.0,40766.0,0.00081086]
[1644017697155,0.329801,40768.0,40766.0,0.00081086]
[1644017697401,0.061343,40768.0,40766.0,0.00081086]
[1644017697999,0.061343,40768.0,40765.0,0.04414578]
[1644017698204,0.11624861,40767.0,40765.0,0.00081087]
[1644017698499,0.39688543,40766.0,40765.0,0.00081087]
[1644017698704,0.382518,40766.0,40765.0,0.00081087]
[1644017699401,0.110746,40766.0,40765.0,0.04414578]
[1644017699602,0.19917924,40769.0,40765.0,0.04414578]
[1644017699801,0.19917924,40769.0,40768.0,0.04414578]
[1644017700101,0.333118,40769.0,40768.0,0.04414578]
[1644017700602,0.08296254,40769.0,40766.0,0.04495664]
[1644017700802,0.333118,40768.0,40766.0,0.04495664]
[1644017701035,0.25583592,40767.0,40766.0,0.04495664]
[1644017701240,0.52429392,40767.0,40766.0,0.04495664]
[1644017701435,0.52429392,40767.0,40766.0,0.00081086]
[1644017701635,0.25583592,40767.0,40764.0,0.04414578]
[1644017701837,0.25583592,40767.0,40764.0,0.04495666]
[1644017702237,0.333118,40766.0,40764.0,0.04495666]
[1644017702835,0.333118,40766.0,40764.0,0.04414578]
[1644017703237,0.394466,40766.0,40764.0,0.04414578]
[1644017703638,0.061348,40766.0,40764.0,0.04414578]
[1644017703840,0.333118,40765.0,40764.0,0.04414578]
[1644017705381,0.333118,40765.0,40764.0,0.03914578]
[1644017706182,0.50583592,40767.0,40764.0,0.12829156]
[1644017706583,0.333118,40766.0,40765.0,0.08914578]
[1644017706981,0.333118,40766.0,40764.0,0.03914578]
[1644017707182,0.333118,40766.0,40765.0,0.08914578]
[1644017707382,0.25,40767.0,40765.0,0.08914578]
[1644017708635,0.25,40767.0,40766.0,0.08914578]
[1644017708834,0.25,40767.0,40766.0,0.08414578]
[1644017708835,0.518455,40767.0,40766.0,0.08414578]
[1644017710538,0.42013126,40775.0,40773.0,3.17096367]
[1644017710738,0.061337,40774.0,40773.0,3.20510945]
[1644017711341,0.28722063,40774.0,40773.0,3.20510945]
[1644017711741,0.28722063,40774.0,40773.0,3.17096367]
[1644017712585,0.3566763,40774.0,40773.0,3.17096367]
[1644017715188,0.6066763,40774.0,40773.0,3.17096367]
[1644017715391,0.8066763,40774.0,40773.0,3.17096367]
[1644017715688,0.8560763,40774.0,40773.0,3.17096367]
[1644017716939,0.8510763,40774.0,40773.0,3.17096367]
[1644017720983,1.01963167,40774.0,40773.0,3.17096367]
[1644017721984,0.74754798,40774.0,40773.0,3.17096367]
[1644017722190,0.57899261,40774.0,40773.0,3.17096367]
[1644017722385,0.6685171,40774.0,40773.0,3.17096367]
[1644017722988,0.7298541,40774.0,40773.0,3.17096367]
[1644017723189,0.7798541,40774.0,40773.0,3.17096367]
[1644017723390,0.8298541,40774.0,40773.0,3.17096367]
[1644017724440,0.8248541,40774.0,40773.0,3.17096367]
[1644017729201,0.8198541,40774.0,40773.0,3.17096367]
[1644017729601,0.98265089,40774.0,40773.0,3.17096367]
[1644017729800,0.7798541,40774.0,40773.0,3.17096367]
[1644017730604,0.94170326,40774.0,40773.0,3.17096367]
[1644017731033,0.94840748,40774.0,40773.0,3.17096367]
[1644017731234,0.99840748,40774.0,40773.0,3.17096367]
[1644017731537,1.6320617,40774.0,40773.0,3.17096367]
[1644017732136,1.6320617,40774.0,40773.0,2.80279467]
[1644017732338,1.75544344,40774.0,40773.0,2.80279467]
[1644017733735,2.75544344,40774.0,40773.0,2.80279467]
[1644017733937,3.02389844,40774.0,40773.0,2.80279467]
[1644017736089,0.18246371,40771.0,40770.0,8.24e-06]
[1644017736289,0.13246371,40764.0,40754.0,0.21508686]
[1644017736488,0.13246371,40764.0,40751.0,0.21508686]
[1644017736489,0.6178,40758.0,40751.0,0.21508686]
[1644017736687,0.0494,40757.0,40751.0,0.21508686]
[1644017737087,0.26100497,40755.0,40750.0,0.07]
[1644017737289,0.24060517,40752.0,40750.0,0.07]
[1644017737488,0.05,40752.0,40750.0,0.07]
[1644017737694,0.11947887,40751.0,40750.0,0.07]
[1644017738530,0.38793387,40751.0,40750.0,0.07]
[1644017738931,0.48793387,40751.0,40750.0,0.07]
[1644017739131,0.53793387,40751.0,40750.0,0.07]
[1644017739332,0.76511518,40751.0,40750.0,0.07]
[1644017739531,0.53793387,40751.0,40750.0,0.07]
[1644017745785,0.75297301,40751.0,40750.0,0.07]
[1644017747741,0.77759301,40751.0,40750.0,0.07]
[1644017748347,1.02759301,40751.0,40750.0,0.07]
[1644017749982,0.81255387,40751.0,40750.0,0.07]
[1644017750887,1.01651308,40751.0,40750.0,0.07]
[1644017752282,1.19287444,40751.0,40750.0,0.07]
[1644017752481,1.19287444,40751.0,40750.0,0.065]
[1644017752681,0.9811903,40751.0,40750.0,0.065]
[1644017753539,0.81255387,40751.0,40750.0,0.065]
[1644017753932,0.98118903,40751.0,40750.0,0.065]
[1644017754136,0.81255387,40751.0,40750.0,0.065]
[1644017754334,1.1842506,40751.0,40750.0,0.065]
[1644017754534,1.01561544,40751.0,40750.0,0.065]
[1644017757289,1.18425432,40751.0,40750.0,0.065]
[1644017757682,1.18370432,40751.0,40750.0,0.065]
[1644017758085,1.01506544,40751.0,40750.0,0.065]
[1644017760686,1.18370943,40751.0,40750.0,0.065]
[1644017761137,1.01506544,40751.0,40750.0,0.065]
[1644017761339,1.18370845,40751.0,40750.0,0.065]
[1644017763037,0.061389,40749.0,40748.0,0.00076034]
[1644017763238,0.99204289,40749.0,40748.0,0.00076034]
[1644017763437,1.09204289,40749.0,40748.0,0.00076034]
[1644017763637,1.3106859,40749.0,40748.0,0.00076034]
[1644017763839,0.09382882,40747.0,40742.0,0.00020272]
[1644017764041,0.6178,40743.0,40741.0,0.02]
[1644017764238,1.2527631,40742.0,40741.0,0.02]
[1644017764437,1.4027631,40742.0,40741.0,0.02]
[1644017764637,1.4273831,40742.0,40741.0,0.02]
[1644017766990,0.8095831,40742.0,40741.0,0.02]
[1644017767589,0.24741004,40742.0,40741.0,0.02]
[1644017767791,0.14741004,40742.0,40741.0,0.02]
[1644017769335,0.19741004,40742.0,40741.0,0.02]
[1644017769842,0.061408,40739.0,40727.0,0.3795]
[1644017770039,0.37873998,40738.0,40727.0,0.3795]
[1644017770235,0.37873998,40738.0,40728.0,0.0002118]
[1644017770236,0.01196,40732.0,40728.0,0.0002118]
[1644017770436,0.14291084,40732.0,40728.0,0.0002118]
[1644017770634,0.64173668,40732.0,40726.0,0.0002118]
[1644017770836,0.74173668,40732.0,40722.0,0.03435758]
[1644017771034,0.74173668,40732.0,40731.0,0.015]
[1644017771233,0.99173668,40732.0,40731.0,0.015]
[1644017771437,1.05315868,40732.0,40731.0,0.015]
[1644017772035,0.311423,40731.0,40723.0,0.0002118]
[1644017772290,0.01196,40729.0,40722.0,0.03435758]
[1644017772483,0.0494,40728.0,40722.0,0.0002118]
[1644017772782,0.29570177,40722.0,40721.0,0.02]
[1644017772984,0.61098656,40722.0,40721.0,0.13829156]
[1644017773182,0.61098656,40722.0,40721.0,0.05414578]
[1644017773383,0.72294656,40722.0,40721.0,0.05414578]
[1644017773584,0.82294656,40722.0,40721.0,0.05414578]
[1644017773983,1.03458364,40722.0,40721.0,0.05414578]
[1644017774186,1.09600364,40722.0,40721.0,0.05414578]
[1644017774787,1.09600364,40722.0,40721.0,0.02]
[1644017775486,1.71380364,40722.0,40721.0,0.02]
[1644017777242,1.88254524,40722.0,40721.0,0.02]
[1644017781894,1.88254524,40722.0,40721.0,0.02122438]
[1644017782392,2.13254524,40722.0,40721.0,0.02122438]
[1644017783396,2.13254524,40722.0,40721.0,0.10537016]
[1644017783397,1.1593216,40722.0,40721.0,0.10537016]
[1644017783640,0.4307016,40722.0,40721.0,0.10537016]
[1644017783836,0.4307016,40722.0,40721.0,0.32511492]
[1644017784037,0.25,40722.0,40721.0,0.32511492]
[1644017784238,0.25,40722.0,40721.0,0.10537016]
[1644017784936,0.3335495,40722.0,40721.0,0.10537016]
[1644017785336,0.3455095,40722.0,40721.0,0.10537016]
[1644017785537,0.5709224,40722.0,40721.0,0.10537016]
[1644017785936,0.6709224,40722.0,40721.0,0.10537016]
[1644017787144,0.839664,40722.0,40721.0,0.10537016]
[1644017787387,0.6142511,40722.0,40721.0,0.10537016]
[1644017787885,0.4455095,40722.0,40721.0,0.10537016]
[1644017788287,0.26196,40722.0,40721.0,0.10537016]
[1644017788591,0.25,40722.0,40721.0,0.10537016]
[1644017788787,0.25,40722.0,40721.0,0.30467859]
[1644017789188,0.25,40722.0,40721.0,0.63801559]
[1644017789388,0.58244759,40752.0,40722.0,0.45]
[1644017789389,0.06692868,40727.0,40722.0,0.45]
[1644017789589,0.06692868,40727.0,40726.0,0.11829156]
[1644017791238,0.30341662,40729.0,40726.0,0.11829156]
[1644017791438,0.01196,40728.0,40726.0,0.11850344]
[1644017791638,0.01196,40728.0,40726.0,0.11829156]
[1644017792940,0.01196,40728.0,40726.0,0.11850344]
[1644017793140,0.01196,40728.0,40726.0,0.11829156]
[1644017793339,0.01196,40728.0,40726.0,0.11850344]
[1644017793539,0.06509091,40727.0,40726.0,0.11850344]
[1644017793739,0.01196,40727.0,40726.0,0.11850344]
[1644017794342,0.01196,40727.0,40726.0,0.11829156]
[1644017795790,0.07691491,40727.0,40726.0,0.11829156]
[1644017795990,0.01196,40727.0,40726.0,0.11829156]
[1644017797489,0.00303619,40729.0,40726.0,0.11829156]
[1644017797690,0.17177779,40729.0,40726.0,0.11829156]
[1644017797894,0.00303619,40729.0,40726.0,0.11829156]
[1644017798089,0.00303619,40729.0,40726.0,0.11850344]
[1644017798090,0.06677716,40728.0,40726.0,0.11850344]
[1644017799132,0.06677716,40728.0,40726.0,0.11829156]
[1644017799333,0.06677716,40728.0,40726.0,0.11850344]
[1644017800334,0.06677716,40728.0,40726.0,0.11829156]
[1644017800540,0.06677716,40728.0,40726.0,0.11850344]
[1644017801437,0.18959816,40728.0,40726.0,0.11850344]
[1644017801634,0.18959816,40728.0,40726.0,0.11829156]
[1644017801835,0.18959816,40728.0,40726.0,0.11850344]
[1644017802886,0.18959816,40728.0,40726.0,0.11829156]
[1644017803283,0.18959816,40728.0,40726.0,0.11850344]
[1644017804084,0.18959816,40728.0,40726.0,0.11829156]
[1644017804286,0.18959816,40728.0,40726.0,0.11850344]
[1644017804686,0.43959816,40728.0,40726.0,0.11850344]
[1644017804885,0.52046119,40728.0,40726.0,0.11850344]
[1644017805285,0.52046119,40728.0,40726.0,0.11829156]
[1644017805286,0.68917519,40728.0,40726.0,0.11829156]
[1644017805486,0.52046119,40728.0,40726.0,0.11850344]
[1644017805887,0.52046119,40728.0,40726.0,0.03435766]
[1644017806135,0.52046119,40728.0,40727.0,0.11569156]
[1644017806535,0.52046119,40728.0,40727.0,0.10569156]
[1644017806736,0.52046119,40728.0,40727.0,0.07284578]